Cogmind - Beta 15 @@@ ROGUE MODE // 2025.06.21 @ 07:17:30 Player: kim.jet.wav Result: Self-destructed Performance ------------- Evolutions (1) 500 Regions Visited (2) 400 Robots Destroyed (15) 75 Value Destroyed (283) 283 Prototype IDs (0) 0 Alien Tech Used (0) 0 Bonus (0) 0 TOTAL SCORE: 1258 Bonus ------- None Cogmind --------- Core Integrity 385/400 Matter 252/300 Energy 157/250 System Corruption 0% Temperature Danger (426) Movement Walking (120) Location -9/Materials Parts ------- > --- POWER (1) -------- Ion Engine > --- PROPULSION (2) --- Aluminum Leg Aluminum Leg > --- UTILITY (3) ------ Small Storage Unit Seismic Detector > --- WEAPON (3) ------- EM Pulse Gun EM Pulse Gun Small Laser > --- INVENTORY (8) ---- Ion Engine Aluminum Leg ECM Suite Peak State ------------ > --- POWER ------------ Ion Engine > --- PROPULSION ------- Aluminum Leg Aluminum Leg > --- UTILITY ---------- Small Storage Unit Seismic Detector > --- WEAPON ----------- EM Pulse Gun EM Pulse Gun Small Laser > --- INVENTORY -------- Ion Engine Aluminum Leg ECM Suite [Rating: 8] Favorites ----------- Power Ion Engine Engine Ion Engine Propulsion Aluminum Leg Leg Aluminum Leg Utility Small Storage Unit Device Seismic Detector Storage Small Storage Unit Weapon EM Pulse Gun Energy Gun EM Pulse Gun Build | -11 -10 -9 ------- Run | Yrd Mat Mat Slots Evolved 2 | . . 2 Power . | . . . Propulsion . | . . . Utility 1 | . . 1 Weapon 1 | . . 1 Parts Attached 12 | 7 4 1 Power 2 | 1 . 1 Engine 2 | 1 . 1 Core . | . . . Reactor . | . . . Propulsion 3 | 2 1 . Treads . | . . . Leg 3 | 2 1 . Wheel . | . . . Hover . | . . . Flight . | . . . Utility 3 | 2 1 . Device 2 | 1 1 . Storage 1 | 1 . . Processor . | . . . Hackware . | . . . Protection . | . . . Artifact . | . . . Weapon 4 | 2 2 . Energy Gun 4 | 2 2 . Energy Cannon . | . . . Ballistic Gun . | . . . Ballistic Cannon . | . . . Launcher . | . . . Special Weapon . | . . . Impact Weapon . | . . . Slashing Weapon . | . . . Piercing Weapon . | . . . Special Melee Weapon . | . . . Unidentified Prototypes . | . . . Parts Lost 1 | . 1 . Power . | . . . Propulsion . | . . . Utility . | . . . Weapon 1 | . 1 . Highest Loss Streak 1 | . 1 . To Critical Strikes . | . . . Average Backups 2 | 1 2 3 Power . | . 1 1 Propulsion . | . . 1 Utility . | . . 1 Weapon . | . . . Tool/Special . | . . . Unused Backups 1 | . . 1 Power . | . . . Propulsion . | . . . Utility 1 | . . 1 Weapon . | . . . Tool/Special . | . . . Average Slot Usage (%) 93 | . 100 82 Engine 12 | . 14 11 Leg 25 | . 28 22 Device 12 | . 14 11 Storage 12 | . 14 11 Energy Gun 27 | . 28 27 Peak Build Rating 8 | 7 7 8 Average Rating 6 | 5 7 7 On Entrance 4 | . 7 7 Naked Turns . | . . . Heaviest Build 16 | 15 15 16 Greatest Support 20 | 20 20 20 Greatest Overweight (x) 2 | 2 . . Average Overweight (x) . | . . . Largest Inventory Capacity 8 | 8 8 8 Average Capacity 7 | 7 8 8 Most Carried 4 | 2 4 4 Average Carried 2 | 1 2 3 Final Capacity 8 | 8 8 8 Final Carried 4 | 2 4 3 Class Distribution -------------------- 81% | Mutant 18% | Gunner Dominant Class ---------------- Mutant | -10/Materials Gunner | -9/Materials Resources | -11 -10 -9 ----------- Run | Yrd Mat Mat Matter Collected 330 | 225 85 20 Remotely . | . . . Salvage Created 414 | 30 225 159 Parts 32 | 4 14 14 Haulers Intercepted . | . . . Recyclers Shooed . | . . . Parts Field Recycled . | . . . Retrieved Matter . | . . . Parts Self-Destructed . | . . . Prevented . | . . . Kills | -11 -10 -9 ------- Run | Yrd Mat Mat Combat Hostiles Destroyed 10 | . 5 5 Guns 10 | . 5 5 Classes Destroyed 8 | 1 5 2 Worker 1 | . 1 . Tunneler 1 | 1 . . Recycler 1 | . 1 . Operator 1 | . . 1 Watcher 1 | . 1 . Swarmer 6 | . 3 3 Grunt 3 | . 2 1 Sentry 1 | . . 1 Best Kill Streak 7 | 1 7 3 Combat Bots Only 5 | . 5 3 Max Kills in Single Turn 2 | 1 2 2 Gunslinging 1 | . 1 1 Exploded . | . . . Melee . | . . . Uniques/NPCs Destroyed . | . . . Combat | -11 -10 -9 -------- Run | Yrd Mat Mat Hostile Shots Fired 31 | . 13 18 Missed 12 | . 3 9 Hits 19 | . 10 9 Projectile 19 | . 10 9 Critical Strikes 2 | . 1 1 Damage Taken 367 | . 258 109 Core 150 | . 135 15 Absorbed by Shields . | . . . Core Remaining (%) 73 | 100 46 . Volleys Fired 27 | 1 10 16 Largest 3 | 2 2 3 Hottest 120 | 80 80 120 Shots Fired 70 | 2 20 48 Gun 70 | 2 20 48 Cannon . | . . . Launcher . | . . . Special . | . . . Kinetic . | . . . Thermal 19 | . 3 16 Explosive . | . . . Electromagnetic 51 | 2 17 32 Robot Hit Streak 10 | 1 5 10 Robot Miss Streak 4 | . 4 3 Penetration Max . | . . . Secondary Targets 3 | . 2 1 Max Gunslinging Chain 1 | . 1 1 Shots Hit Robots 30 | 1 12 17 Core Hits 19 | 1 10 8 Critical Kills . | . . . Critical Parts Destroyed . | . . . Critical Strikes . | . . . Melee Attacks . | . . . Impact . | . . . Slashing . | . . . Piercing . | . . . Sneak Attacks . | . . . Combat Hostiles . | . . . Follow-up Attacks . | . . . Damage Inflicted 556 | 13 309 234 Guns 384 | 13 181 190 Cannons . | . . . Explosions 172 | . 128 44 Melee . | . . . Ramming . | . . . Kinetic . | . . . Thermal 284 | . 163 121 Explosive . | . . . Electromagnetic 272 | 13 146 113 Impact . | . . . Slashing . | . . . Piercing . | . . . Highest Corruption . | . . . Average Corruption . | . . . Corruption Purged . | . . . Corruption Blocked . | . . . Overload Shots . | . . . Overflow Damage 14 | . 14 . Projectiles . | . . . Explosions 14 | . 14 . Melee . | . . . Knockbacks . | . . . Impact . | . . . Kinetic . | . . . Secondary . | . . . Self-Inflicted Damage 173 | . 173 . Shots 2 | . 2 . Rammed . | . . . Targets Rammed . | . . . Kicked . | . . . Crushed . | . . . Highest Temperature 426 | 18 112 426 Average Temperature 109 | 12 45 154 Received Heat Transfer 75 | . 18 57 Effects 1 | . . 1 Matter Decay 1 | . . 1 Siege Activations . | . . . Martial Activations . | . . . Shielding Activations . | . . . Robots Disrupted . | . . . Combat Hostiles . | . . . Robots Corrupted . | . . . Combat Hostiles . | . . . Parts Fried 1 | . 1 . Impact Corruptions . | . . . Robots Melted . | . . . Combat Hostiles . | . . . Parts Melted . | . . . Heat Transferred 450 | . 225 225 Parts Sabotaged . | . . . Parts Stolen . | . . . Parts Stripped . | . . . Power Chain Reactions . | . . . Alert | -11 -10 -9 ------- Run | Yrd Mat Mat Maximum Alert Level . | . . . Low Security (%) 100 | 100 100 100 Level 1 . | . . . Level 2 . | . . . Level 3 . | . . . Level 4 . | . . . Level 5 . | . . . High Security . | . . . Max Security . | . . . Peak Influence 187 | 5 187 159 Initial 61 | . . 61 Average 56 | . 58 83 Influence Increases 397 | 5 214 178 Destroy 0b10 Robot/C 200 | . 100 100 Destroy 0b10 Robot/NC 25 | 5 15 5 Destroy Leader 42 | . 22 20 Disable Machine 45 | . 30 15 Destroy Structure 70 | . 47 23 Lose Combat Pursuer 15 | . . 15 Influence Decreases 238 | 5 67 166 Entered New Map 86 | . . 86 Time Decay 142 | 5 57 80 Lost Part 10 | . 10 . Squads Dispatched 2 | . 1 1 Investigation . | . . . Extermination . | . . . Reinforcement 2 | . 1 1 Assault . | . . . Garrison . | . . . Intercept . | . . . Searches Triggered . | . . . Construction Impeded . | . . . Haulers Reinforced . | . . . Active Scanning Responses . | . . . Cargo Convoy Interrupts . | . . . Stealth | -11 -10 -9 --------- Run | Yrd Mat Mat Distress Signals 1 | . 1 . Communications Jammed . | . . . Distress Signals . | . . . Times Spotted 14 | . 8 6 Peak Tracking Total 5 | . 5 4 Tactical Retreats 1 | . . 1 Traps | -11 -10 -9 ------- Run | Yrd Mat Mat Traps Triggered . | . . . Indirectly . | . . . Trap Hack Attempts . | . . . Triggered . | . . . Disarmed . | . . . Reprogrammed . | . . . Reused . | . . . Traps Extracted . | . . . Installed . | . . . Triggered . | . . . Machines | -11 -10 -9 ---------- Run | Yrd Mat Mat Machines Disabled 3 | . 2 1 Max in Single Turn 2 | . 2 1 Machines Repaired . | . . . Machines Dismantled . | . . . Machines Sabotaged . | . . . Overloaded Fab Kills . | . . . Hacking | -11 -10 -9 --------- Run | Yrd Mat Mat Machines Accessed 1 | . 1 . Terminals 1 | . 1 . Fabricators . | . . . Repair Stations . | . . . Recycling Units . | . . . Scanalyzers . | . . . Garrison Access . | . . . Total Hacks 2 | . 2 . Successful 1 | . 1 . Failed 1 | . 1 . Catastrophic . | . . . Database Lockouts . | . . . Manual . | . . . Terminals 2 | . 2 . Fabricators . | . . . Repair Stations . | . . . Recycling Units . | . . . Scanalyzers . | . . . Garrison Access . | . . . Terminal Hacks 1 | . 1 . Alert Level 1 | . 1 . Fabricator Hacks . | . . . Repair Station Hacks . | . . . Recycling Unit Hacks . | . . . Scanalyzer . | . . . Garrison Access Hacks . | . . . Unauthorized Hacks . | . . . Terminals . | . . . Fabricators . | . . . Repair Stations . | . . . Recycling Units . | . . . Scanalyzers . | . . . Garrison Access . | . . . Data Cores Recovered . | . . . Used . | . . . Hacking Detections . | . . . Full Trace Events . | . . . Feedback Events . | . . . Feedback Blocked . | . . . Robot Schematics Acquired . | . . . Robots Built . | . . . Authchips . | . . . Time . | . . . Total Robot Build Rating . | . . . Part Schematics Acquired . | . . . Parts Built . | . . . Authchips . | . . . Time . | . . . Total Part Build Rating . | . . . Parts Repaired . | . . . Time . | . . . Parts Recycled . | . . . Recycled Matter . | . . . Retrieved Matter . | . . . Retrieved Components . | . . . Parts Scanalyzed . | . . . Part Schematics Acquired . | . . . Parts Damaged . | . . . Bothacking | -11 -10 -9 ------------ Run | Yrd Mat Mat Used RIF Installer . | . . . Robots Hacked . | . . . Non-combat . | . . . Combat . | . . . Robot Hacks Applied . | . . . Relay Couplers Released . | . . . Fabnet Peak Effective % . | . . . Robots Rewired . | . . . Allies Hacked . | . . . Hacks Repelled . | . . . Allies | -11 -10 -9 -------- Run | Yrd Mat Mat Total Allies . | . . . Largest Group . | . . . Highest-Rated Group . | . . . Highest-Rated Ally . | . . . Total Orders . | . . . Ally Attacks . | . . . Total Damage . | . . . Kills . | . . . Allies Corrupted . | . . . Allies Melted . | . . . Intel | -11 -10 -9 ------- Run | Yrd Mat Mat Active Infowar (turns) 433 | 8 262 163 Seismic 433 | 8 262 163 Robot Analysis Total . | . . . Derelict Logs Recovered . | . . . Drone Launches . | . . . Drone Recoveries . | . . . Exploration | -11 -10 -9 ------------- Run | Yrd Mat Mat Turns Passed 516 | 89 264 163 Spaces Moved 322 | 56 180 86 Core 9 | 9 . . Treads . | . . . Legs 313 | 47 180 86 Wheels . | . . . Hover . | . . . Flight . | . . . Fastest Speed 50 | 50 120 120 Average Speed 119 | 118 120 120 Slowest Speed 150 | 150 120 120 Overloaded Moves . | . . . Propulsion Burnouts . | . . . Robots Hopped . | . . . Potential Cave-ins . | . . . Cave-ins Triggered . | . . . Exploration Rate (%) 15 | 4 26 15 Regions Visited 2 Branch Regions . Pre-discovered Areas . | . . . Known Exits Taken . | . . . Unknown Exits Taken 2 | 1 1 . Scrap Searched . | . . . Spaces Dug . | . . . Terrain Destroyed 71 | . 49 22 Melee . | . . . Projectile . | . . . AOE 71 | . 49 22 Terrain Rammed . | . . . Walls Destroyed . | . . . Machines Disabled . | . . . Actions | -11 -10 -9 --------- Run | Yrd Mat Mat Total 389 | 73 207 109 Wait 25 | 8 12 5 Move 320 | 55 179 86 Hop . | . . . Pick Up 3 | 2 1 . Fast Attach 7 | 7 . . Attach 2 | . 1 1 Detach . | . . . Swap 4 | . 3 1 Drop 1 | . 1 . Fire 27 | 1 10 16 Melee . | . . . Ram . | . . . Kick . | . . . Crush . | . . . Escape Stasis . | . . . Rewire . | . . . Trap . | . . . Miscellaneous . | . . . Route ------- -11/Scrapyard -10/Materials -9/Materials History --------- Turn | Location | Event 4 | -11/Scrapyard | Discovered new exit (range 15) 90 | -11/Scrapyard | Entered Materials 267 | -10/Materials | Core integrity fell below 50% 282 | -10/Materials | Discovered new exit (range 11) 327 | -10/Materials | Build established: Mutant 354 | -10/Materials | Entered another Materials area 354 | -9/Materials | Evolved 2 slots: Utility x1, Weapon x1 517 | -9/Materials | Self-destructed Last Messages --------------- LOCATION=UNKNOWN GOAL=ESCAPE 00390_ K-01 Serf collects debris. 00424_ G-34 Mercenary destroyed. 00424_ Switching to secondary target: S-10 Pest. 00424_ S-10 Pest destroyed. 00443_ Acquired 20 matter. 00445_ K-01 Serf cleans the Nuclear Reactor. 00454_ O-16 Technician: "IFF HANDSHAKE FAILED. SECURING TERMINAL." 00454_ K-01 Serf collects debris. 00459_ S-10 Pest destroyed. 00466_ ALERT: Hostiles spotted, dispatching reinforcements to Terminal M005. 00488_ Critical hit (Burn: +37). 00489_ Y-45 Defender destroyed. 00507_ Door malfunctions. 00510_ Overheating: Matter decay (-48). 00516_ Fusion Modulator explodes. 00516_ O-16 Technician destroyed. 00517_ K-01 Serf collects debris. Map ----- +----------------------------------------------------+ | ??????????????????# # """ ## + """ #???? | | ??????????????????# # """ ## # """ #???? | | ??????????????????# %#* """ ## # """ #???? | | ??????????????????# =%+! + # #???? | | ??????????????????# =%#[ """ ###### #???? | | ??????????????????### # """ #????# =*[ #???? | | ????????????????????# # """ #????# =*[ #???? | | ????????????????????# # #????#= =[ #???? | | ????????????????????#+#############?##########???? | | ????????????????????# #??????????????? | | ????????????????????# #??????????????? | | ????????????????????# * #??????????????? | | ????????????????????# [%= #??????????????? | | ????????????????????# = #??????????????? | | ????????????????????# ] #??????????????? | | ????????????????????#######+###########??????????? | | ???????????????????###### #??????????? | | ???????????????????+ #??????????? | | ???????????????????# #??????????? | | ???????????????????# #??????????? | | ???????????????????# ##??????????? | | ???????????????????# #???????????? | | ???????????????????####### ######## #???????????? | | ????????????????????????##+##;;;;;# #???????????? | | ????????????????????????# !!! ; #???????????? | | ????????????????????????#@= = !!! ; #???????????? | | ????????????????????????# !!! ; #???????????? | | ????????????????????????# ; + ??????????? | | ????????????????????????#" ; # ?????????? | | ????????????????????????#T / ;*=#???????????? | | ????????????????????????#" ; ??????????? | | ????????????????????????# ! [ ; ??????????? | | ????????????????????????###;; ;;;;;;#+#??????????? | | ???????????????????????????##;#; ???????????? | | ?????????????????????????????### ???????????? | | ???????????????????????????????? ????????????? | | ????????????????????????????????? k ????????????? | | ?????????????????????????????????? ??????????????? | | ?????????????????????????????????????????????????? | | | | | | | | | | | | | | | | | | | | | | | +----------------------------------------------------+ Best States ------------- Heat Dissipation 28 Energy Generation 10 Energy Capacity 250 Matter Stores 300 Matter Capacity 300 Sight Range 16 Terrain Scan Density 10 Evasion (%) 55 Item Schematics ----------------- None Robot Schematics ------------------ None Fabricated ------------ Nothing Repaired ---------- Nothing Alien Tech Used ----------------- None Achievements -------------- None Challenges ------------ None Game ------ Seed FissionLightpackRegenerator Manual? 0 Play Time 00:10:10 Cumulative 36.2 hours Start 2025.06.21 @ 07:08:59 End 2025.06.21 @ 07:17:30 Sessions 1 Manual Loads 0 Difficulty Rogue Special Mode None Game No. 191 Rogue 191 Adventurer 0 Explorer 0 Win Type - Total 0 Types 0/0/0/0/0/0/0/0/0/0 Lore% 19 Gallery% 17 Achievement% 18 Wizard Run 0 Options --------- Layout 0 ASCII 1 Keyboard 1 Movement Numpad Keybinds 1 Fullscreen 1 Font 18/X11 Map View 76x50 Zoom Use 0% Tactical HUD 1 Map Filters NONE Filters NONE Steam 1 RUN: f4c62311-5ffa-4853-b41a-21aabf8ca043